PAYMENT DATE,EXP_CODE,EXPENSE TYPE,SUPPLIER NAME,REFERENCE,AMOUNT
31/05/2011,Waste Management WGH,Miscellaneous Expenses,SRCL LTD,20159945,"26,592.94"
12/05/2011,Porters SAHH,Healthcare From Other Bodies,COMPASS SERVICES UK AND IRELAND LTD,30172359,"26,895.66"
26/05/2011,Med Anaesthetics WGH,Medical Agency,NES HEALTHCARE UK,13018349,"26,970.00"
12/05/2011,SACH Catering,Provisions,COMPASS SERVICES UK AND IRELAND LTD,30172359,"27,267.98"
26/05/2011,Energy & Water - SA,Fuel & Power,SOUTHERN ELECTRIC PLC,30172962,"28,188.84"
26/05/2011,Energy & Water - HH,Fuel & Power,SOUTHERN ELECTRIC PLC,30172964,"28,347.06"
16/05/2011,Cardiac Catheter Lab WGH,Medical & Surgical Equipment,MEDTRONIC LTD,10155964,"28,350.00"
31/05/2011,Porters WGH,Healthcare From Other Bodies,COMPASS SERVICES UK AND IRELAND LTD,30172844,"28,654.29"
09/05/2011,Waste Management WGH,Miscellaneous Expenses,SRCL LTD,20159498,"29,013.91"
23/05/2011,Cardiac Catheter Lab WGH,Medical & Surgical Equipment,MEDTRONIC LTD,10156304,"29,120.00"
26/05/2011,Energy & Water - SA,Fuel & Power,SOUTHERN ELECTRIC PLC,30172960,"29,422.42"
12/05/2011,Catering WGH,Provisions,COMPASS SERVICES UK AND IRELAND LTD,30172355,"30,213.85"
26/05/2011,Energy & Water - HH,Fuel & Power,SOUTHERN ELECTRIC PLC,30172961,"30,404.22"
19/05/2011,R&D Clinical Staff,Miscellaneous Expenses,UNIVERSITY OF HERTFORDSHIRE,30172154,"30,995.00"
19/05/2011,R&D Clinical Staff,Miscellaneous Expenses,UNIVERSITY OF HERTFORDSHIRE,30172155,"30,995.00"
19/05/2011,R&D Clinical Staff,Miscellaneous Expenses,UNIVERSITY OF HERTFORDSHIRE,30172156,"30,995.00"
19/05/2011,Cardiac Catheter Lab WGH,Medical & Surgical Equipment,BOSTON SCIENTIFIC LTD,60096717,"31,500.00"
26/05/2011,Pharmacy WGH,Drugs,ROCHE PRODUCTS LTD,20160002,"31,782.45"
31/05/2011,Domestics WGH,Healthcare From Other Bodies,COMPASS SERVICES UK AND IRELAND LTD,30172844,"31,943.00"
23/05/2011,Balance Sheet,Car parking,CP PLUS LTD,13018449,"35,061.92"
19/05/2011,Porters WGH,Healthcare From Other Bodies,COMPASS SERVICES UK AND IRELAND LTD,30172353,"35,817.87"
12/05/2011,SACH Domestics,Cleaning,COMPASS SERVICES UK AND IRELAND LTD,30172359,"37,425.10"
31/05/2011,Domestics WGH,Cleaning,COMPASS SERVICES UK AND IRELAND LTD,30172844,"37,607.50"
23/05/2011,Surgical Management,Healthcare From Other Bodies,SPIRE HARPENDEN HOSPITAL,30172658,"38,324.75"
19/05/2011,Laundry,Healthcare From Other Bodies,COMPASS SERVICES UK AND IRELAND LTD,30172353,"39,928.75"
19/05/2011,Pharmacy WGH,Drugs,HEALTHCARE AT HOME LTD,60096794,"41,447.15"
23/05/2011,Balance Sheet,Assets In Course Of Const'n,ISOFT PLC,10156284,"42,665.00"
31/05/2011,Uniform Bus Rates - WHHT sites,UBR & Council Tax,DACORUM BOROUGH COUNCIL,30173026,"42,867.00"
09/05/2011,ITU WGH,Medical & Surgical Equipment,NHS SUPPLY CHAIN,30172126,"44,944.80"
19/05/2011,Domestics WGH,Cleaning,COMPASS SERVICES UK AND IRELAND LTD,30172353,"47,009.37"
16/05/2011,Pharmacy WGH,Drugs,HEALTHCARE AT HOME LTD,60096793,"48,460.34"
09/05/2011,Urgent Care Centre,Healthcare From Other Bodies,HERTS URGENT CARE,60096347,"48,663.45"
19/05/2011,Energy & Water - WGH,Fuel & Power,TOTAL GAS & POWER,30172830,"48,774.92"
12/05/2011,Domestics SAHH,Cleaning,COMPASS SERVICES UK AND IRELAND LTD,30172359,"49,696.36"
31/05/2011,Porters WGH,Healthcare From Other Bodies,COMPASS SERVICES UK AND IRELAND LTD,30172844,"51,746.08"
19/05/2011,Accommodation WGH,Miscellaneous Expenses,ORIGIN HOUSING LTD,13018358,"52,425.00"
12/05/2011,Watford Health Campus,Computer Purchases,PROJECTPLACE INTERNATIONAL AB,13018086,"52,736.00"
09/05/2011,Out Patients SACH,Drugs,NHSBSA PRESCRIPTION  PRICING DIVISION,30172412,"53,023.85"
31/05/2011,Catering WGH,Provisions,COMPASS SERVICES UK AND IRELAND LTD,30172844,"60,710.40"
12/05/2011,Transport WGH,Travel & Subsistence,HERTFORDSHIRE PARTNERSHIP NHS FOUNDATION,30172472,"64,283.00"
26/05/2011,Transport WGH,AMBULANCE SERVICES,HERTFORDSHIRE PARTNERSHIP NHS FOUNDATION,30172634,"64,283.00"
19/05/2011,Porters WGH,Healthcare From Other Bodies,COMPASS SERVICES UK AND IRELAND LTD,30172353,"64,682.60"
09/05/2011,Balance Sheet,Assets In Course Of Const'n,ARJ CONSTRUCTION LTD,60096101,"71,235.40"
31/05/2011,Uniform Bus Rates - WHHT sites,UBR & Council Tax,WATFORD COUNCIL,30173025,"72,311.00"
19/05/2011,Catering WGH,Provisions,COMPASS SERVICES UK AND IRELAND LTD,30172353,"75,888.00"
26/05/2011,Energy & Water - WGH,Fuel & Power,SOUTHERN ELECTRIC PLC,30172958,"81,440.99"
16/05/2011,Chief Executive,Miscellaneous Expenses,CARE QUALITY COMMISSION,13018065,"85,000.00"
16/05/2011,IT Contracts,Computer Maintenance,ISOFT PLC,10154150,"97,123.55"
09/05/2011,Ambulances,AMBULANCE SERVICES,MEDICAL SERVICES LTD,10155831,"112,167.15"
26/05/2011,Ambulances,AMBULANCE SERVICES,MEDICAL SERVICES LTD,10156427,"112,167.15"
31/05/2011,Domestics WGH,Cleaning,COMPASS SERVICES UK AND IRELAND LTD,30172844,"114,637.17"
19/05/2011,Balance Sheet,Stores,NHS SUPPLY CHAIN,30172642,"119,998.77"
09/05/2011,Balance Sheet,Provisions less than one year,NHS PENSIONS,30172489,"125,475.03"
19/05/2011,Domestics WGH,Cleaning,COMPASS SERVICES UK AND IRELAND LTD,30172353,"143,296.46"
26/05/2011,Balance Sheet,Stores,NHS SUPPLY CHAIN,30172643,"158,367.98"
16/05/2011,Chemical Pathology,Blood Products,NHS BLOOD & TRANSPLANT,30172411,"162,312.43"
16/05/2011,Balance Sheet,Stores,NHS SUPPLY CHAIN,30172491,"167,192.81"
23/05/2011,Cardiac Catheter Lab WGH,Medical & Surgical Equipment,MEDTRONIC LTD,10156303,"170,800.00"
09/05/2011,Balance Sheet,Stores,NHS SUPPLY CHAIN,30172413,"189,981.93"
